fUST/lending_fUST_20260703
["ID","MTS","AMOUNT","RATE_DAILY","PERIOD"]
[426914135,1783008187000,500.0,0.000285,120]
[426914219,1783008632000,-500.0,0.00023821,2]
[426914217,1783008632000,-500.0,0.00023821,2]
[426914223,1783008632000,-500.0,0.00023821,2]
[426914215,1783008632000,-500.0,0.00023821,2]
[426914207,1783008632000,-189.56244506,0.00023821,2]
[426914213,1783008632000,-500.0,0.00023821,2]
[426914198,1783008632000,-171.67946021,0.00022894,2]
[426914203,1783008632000,-500.0,0.00023821,2]
[426914209,1783008632000,-500.0,0.00023821,2]
[426914199,1783008632000,-416.99033838,0.000229,2]
[426914205,1783008632000,-500.0,0.00023821,2]
[426914196,1783008632000,-154.80465886,0.00022894,2]
[426914194,1783008632000,-205.69383349,0.00022894,2]
[426914211,1783008632000,-500.0,0.00023821,2]
[426914201,1783008632000,-454.64923018,0.00023821,2]
[426914192,1783008632000,-151.6065306,0.00022894,2]
[426914190,1783008632000,-189.27692812,0.00022894,2]
[426914186,1783008632000,-155.684762,0.00022889,2]
[426914188,1783008632000,-152.84738867,0.00022889,2]
[426914182,1783008632000,-170.77579173,0.00022889,2]
[426914183,1783008632000,-415.40750099,0.00022889,2]
[426914178,1783008632000,-561.9850397,0.00022225,2]
[426914184,1783008632000,-183.61172316,0.00022889,2]
[426914179,1783008632000,-174.936957,0.00022265,2]
[426914185,1783008632000,-312.24508487,0.00022889,2]
[426914181,1783008632000,-168.75683377,0.00022889,2]
[426914176,1783008632000,-234.08871696,0.0002192,2]
[426914221,1783008632000,-500.0,0.00023821,2]
[426914225,1783008632000,-500.0,0.00023821,2]
[426914288,1783008632000,-197.25873468,0.00023821,2]
[426914234,1783008632000,-500.0,0.00023821,2]
[426914286,1783008632000,-500.0,0.00023821,2]
[426914282,1783008632000,-500.0,0.00023821,2]
[426914284,1783008632000,-500.0,0.00023821,2]
[426914268,1783008632000,-500.0,0.00023821,2]
[426914270,1783008632000,-500.0,0.00023821,2]
[426914276,1783008632000,-500.0,0.00023821,2]
[426914274,1783008632000,-500.0,0.00023821,2]
[426914279,1783008632000,-500.0,0.00023821,2]
[426914277,1783008632000,-500.0,0.00023821,2]
[426914272,1783008632000,-500.0,0.00023821,2]
[426914262,1783008632000,-500.0,0.00023821,2]
[426914266,1783008632000,-592.24884322,0.00023821,2]
[426914264,1783008632000,-500.0,0.00023821,2]
[426914260,1783008632000,-500.0,0.00023821,2]
[426914226,1783008632000,-500.0,0.00023821,2]
[426914254,1783008632000,-500.0,0.00023821,2]
[426914230,1783008632000,-500.0,0.00023821,2]
[426914228,1783008632000,-500.0,0.00023821,2]
[426914237,1783008632000,-500.0,0.00023821,2]
[426914232,1783008632000,-500.0,0.00023821,2]
[426914236,1783008632000,-500.0,0.00023821,2]
[426914239,1783008632000,-500.0,0.00023821,2]
[426914252,1783008632000,-200.1503599,0.00023821,2]
[426914246,1783008632000,-556.0679076,0.00023821,2]
[426914256,1783008632000,-500.0,0.00023821,2]
[426914250,1783008632000,-500.0,0.00023821,2]
[426914248,1783008632000,-500.0,0.00023821,2]
[426914258,1783008632000,-500.0,0.00023821,2]
[426914241,1783008632000,-500.0,0.00023821,2]
[426914343,1783008638000,-500.0,0.0002382,2]
[426914352,1783008638000,-367.22344633,0.0002387,2]
[426914356,1783008638000,-162.4622484,0.0002387,2]
[426914354,1783008638000,-624.49016974,0.0002387,2]
[426914355,1783008638000,-274.776,0.0002387,5]
[426914341,1783008638000,-500.0,0.0002382,2]
[426914339,1783008638000,-500.0,0.0002382,2]
[426914340,1783008638000,-500.0,0.0002382,2]
[426914342,1783008638000,-500.0,0.0002382,2]
[426914338,1783008638000,-500.0,0.0002382,2]
[426914345,1783008638000,-500.0,0.0002382,2]
[426914353,1783008638000,-311.369524,0.0002387,2]
[426914350,1783008638000,-341.55158346,0.0002387,2]
[426914344,1783008638000,-500.0,0.0002382,2]
[426914348,1783008638000,-34137.71301529,0.00023822,2]
[426914346,1783008638000,-500.0,0.0002382,2]
[426914364,1783008638000,-255.21660947,0.00024376,10]
[426914360,1783008638000,-303.2130612,0.00023875,2]
[426914358,1783008638000,-305.69477735,0.0002387,2]
[426914362,1783008638000,-309.60931772,0.00023875,2]
[426914363,1783008638000,-343.35892042,0.00023875,2]
[426914366,1783008638000,-512.3273752,0.00024524,2]
[426914359,1783008638000,-378.55385624,0.00023875,2]
[426914367,1783008638000,-1246.22250296,0.00024524,2]
[426914361,1783008638000,-411.38766697,0.00023875,2]
[426914349,1783008638000,-337.51366754,0.0002387,2]
[426914351,1783008638000,-830.81500198,0.0002387,2]
[426914365,1783008638000,-506.27050132,0.00024524,2]
[426914347,1783008638000,-413.40229129,0.00023821,2]
[426914408,1783008639000,-1846.0,0.0002522,2]
[426914416,1783008639000,-918.05861582,0.00025396,2]
[426914422,1783008639000,-1028.46916743,0.00025402,2]
[426914417,1783008639000,-1561.22542434,0.00025396,2]
[426914413,1783008639000,-843.78416886,0.00025396,2]
[426914401,1783008639000,-822.77533394,0.00024965,2]
[426914405,1783008639000,-154.80179543,0.00024965,2]
[426914400,1783008639000,-606.4261224,0.00024965,2]
[426914406,1783008639000,-686.71784085,0.00024965,2]
[426914398,1783008639000,-325.99556539,0.00024965,2]
[426914407,1783008639000,-587.466,0.0002522,2]
[426914414,1783008639000,-853.87895866,0.00025396,2]
[426914404,1783008639000,-250.00379662,0.00024965,2]
[426914421,1783008639000,-758.032653,0.00025402,2]
[426914415,1783008639000,-2077.03750494,0.00025396,2]
[426914419,1783008639000,-500.0,0.00025401,2]
[426914410,1783008639000,-186.0,0.0002522,2]
[426914409,1783008639000,-446.0,0.0002522,2]
[426914412,1783008639000,-300.0,0.00025396,3]
[426914411,1783008639000,-160.0,0.00025266,2]
[426914428,1783008639000,-171.60903,0.00025574,2]
[426914432,1783008639000,-1024.65475039,0.0002605,2]
[426914435,1783008639000,-1873.47050921,0.0002605,2]
[426914434,1783008639000,-1101.67033898,0.0002605,2]
[426914424,1783008639000,-858.39730106,0.00025402,2]
[426914427,1783008639000,-170.0,0.00025463,2]
[426914426,1783008639000,-900.0,0.00025463,2]
[426914403,1783008639000,-229.58872451,0.00024965,2]
[426914420,1783008639000,-946.3846406,0.00025402,2]
[426914396,1783008639000,-167.41780527,0.0002496,2]
[426914373,1783008639000,-162.9977827,0.00024529,2]
[426914399,1783008639000,-757.10771248,0.00024965,2]
[426914369,1783008639000,-467.054286,0.00024524,2]
[426914368,1783008639000,-550.83516949,0.00024524,2]
[426914371,1783008639000,-324.92449679,0.00024524,2]
[426914370,1783008639000,-936.73525461,0.00024524,2]
[426914375,1783008639000,-454.8195918,0.00024529,2]
[426914376,1783008639000,-617.08150046,0.00024529,2]
[426914384,1783008639000,-1661.63000395,0.0002496,2]
[426914379,1783008639000,-500.0,0.00024881,2]
[426914381,1783008639000,-500.0,0.00024881,2]
[426914425,1783008639000,-370.0,0.00025463,2]
[426914372,1783008639000,-458.54216602,0.00024524,2]
[426914380,1783008639000,-300.0,0.00024881,4]
[426914374,1783008639000,-567.83078436,0.00024529,2]
[426914382,1783008639000,-675.02733509,0.0002496,2]
[426914383,1783008639000,-683.10316693,0.0002496,2]
[426914377,1783008639000,-464.41397658,0.00024529,2]
[426914378,1783008639000,-515.03838063,0.00024529,2]
[426914392,1783008639000,-224.82372232,0.0002496,2]
[426914395,1783008639000,-611.3895547,0.0002496,2]
[426914388,1783008639000,-12.35648666,0.0002496,2]
[426914394,1783008639000,-224.72417896,0.0002496,2]
[426914387,1783008639000,-722.090406,0.0002496,2]
[426914393,1783008639000,-245.1138784,0.0002496,2]
[426914385,1783008639000,-167.129873,0.0002496,2]
[426914390,1783008639000,-1248.98033948,0.0002496,2]
[426914389,1783008639000,-622.739048,0.0002496,2]
[426914391,1783008639000,-225.57828856,0.0002496,2]
[426914386,1783008639000,-172.79385726,0.0002496,2]
[426914402,1783008639000,-619.21863543,0.00024965,2]
[426914397,1783008639000,-168.80406335,0.0002496,2]
[426914429,1783008639000,-600.0,0.00026,14]
[426914418,1783008639000,-764.23694337,0.00025396,2]
[426914423,1783008639000,-774.02329429,0.00025402,2]
[426914468,1783008639000,-530.81711323,0.00027897,7]
[426914470,1783008639000,-431.9009,0.00027898,2]
[426914481,1783008639000,-1269.13873599,0.00027999,2]
[426914476,1783008639000,-670.99904073,0.00027999,2]
[426914467,1783008639000,-600.0,0.000275,14]
[426914478,1783008639000,-2147.19693034,0.00027999,2]
[426914475,1783008639000,-625.88697052,0.0002797,2]
[426914471,1783008639000,-491.4436,0.000279,3]
[426914487,1783008639000,-220.0,0.00028,2]
[426914493,1783008639000,-1846.0,0.0002822,2]
[426914484,1783008639000,-1507.25163605,0.00027999,2]
[426914482,1783008639000,-471.01613627,0.00027999,2]
[426914486,1783008639000,-157.0,0.00028,2]
[426914491,1783008639000,-200.0,0.00028142,10]
[426914489,1783008639000,-200.0,0.00028142,10]
[426914488,1783008639000,-1805.8068381,0.00028,7]
[426914494,1783008639000,-446.0,0.0002822,2]
[426914485,1783008639000,-182.0,0.00028,2]
[426914492,1783008639000,-169.0,0.00028219,28]
[426914490,1783008639000,-200.0,0.00028142,10]
[426914483,1783008639000,-847.82904528,0.00027999,2]
[426914498,1783008639000,-1983.1332496,0.00028437,2]
[426914497,1783008639000,-4339.77911942,0.00028318,7]
[426914496,1783008639000,-171.60903,0.00028265,2]
[426914500,1783008639000,-3066.0836764,0.00028437,2]
[426914501,1783008639000,-217.44977191,0.00028443,2]
[426914499,1783008639000,-2602.2430273,0.00028437,2]
[426914495,1783008639000,-186.0,0.0002822,2]
[426914433,1783008639000,-2492.44500593,0.0002605,2]
[426914474,1783008639000,-361.2,0.00027959,2]
[426914473,1783008639000,-2114.34369207,0.00027959,2]
[426914480,1783008639000,-4826.36190017,0.00027999,2]
[426914472,1783008639000,-3387.92486494,0.00027959,2]
[426914430,1783008639000,-160.0,0.00026027,19]
[426914431,1783008639000,-1012.54100263,0.0002605,2]
[426914437,1783008639000,-1135.66156872,0.00026056,2]
[426914442,1783008639000,-370.0,0.00026139,2]
[426914439,1783008639000,-928.82795315,0.00026056,2]
[426914440,1783008639000,-1030.07676127,0.00026056,2]
[426914438,1783008639000,-909.6391836,0.00026056,2]
[426914443,1783008639000,-950.0,0.00026139,2]
[426914447,1783008639000,-178.93,0.00026206,2]
[426914446,1783008639000,-178.92,0.00026204,2]
[426914477,1783008639000,-1207.79827331,0.00027999,2]
[426914444,1783008639000,-180.0,0.00026139,2]
[426914441,1783008639000,-500.0,0.00026084,2]
[426914436,1783008639000,-917.08433205,0.0002605,2]
[426914449,1783008639000,-1181.2978364,0.00027032,2]
[426914445,1783008639000,-178.92,0.00026202,2]
[426914461,1783008639000,-500.0,0.00027066,2]
[426914479,1783008639000,-3354.99520365,0.00027999,2]
[426914457,1783008639000,-1083.63261201,0.00027037,2]
[426914502,1783008639000,-180.582123,0.0002846,14]
[426914448,1783008639000,-171.0,0.00027,7]
[426914459,1783008639000,-1201.75622148,0.00027037,2]
[426914463,1783008639000,-230.0,0.00027102,2]
[426914450,1783008639000,-1195.43054213,0.00027032,2]
[426914453,1783008639000,-2185.71559408,0.00027032,2]
[426914452,1783008639000,-1285.28206215,0.00027032,2]
[426914456,1783008639000,-1061.24571419,0.00027037,2]
[426914454,1783008639000,-1069.93172072,0.00027032,2]
[426914465,1783008639000,-269.53124142,0.00027397,30]
[426914455,1783008639000,-1324.93849684,0.00027037,2]
[426914451,1783008639000,-2907.85250692,0.00027032,2]
[426914512,1783008640000,-3323.2600079,0.00028503,2]
[426914518,1783008640000,-40394.08040569,0.00028517,25]
[426914519,1783008640000,-152.0,0.00028517,7]
[426914505,1783008640000,-171.077799,0.00028488,14]
[426914504,1783008640000,-1274.477071,0.0002848,5]
[426914506,1783008640000,-170.561899,0.00028488,14]
[426914508,1783008640000,-1000.0,0.000285,5]
[426914507,1783008640000,-500.0,0.000285,10]
[426914521,1783008640000,-152.0,0.00028517,7]
[426914503,1783008640000,-1416.374455,0.0002848,5]
[426914520,1783008640000,-152.0,0.00028517,7]
[426914515,1783008640000,-1212.85224479,0.00028509,2]
[426914523,1783008640000,-198.36274579,0.00028517,7]
[426914514,1783008640000,-1222.7791094,0.00028503,2]
[426914528,1783008640000,-2355.08068133,0.00027999,2]
[426914525,1783008640000,-32056.46856804,0.00028518,2]
[426914524,1783008640000,-1694198.02822302,0.00028518,2]
[426914511,1783008640000,-1350.05467018,0.00028503,2]
[426914529,1783008640000,-513900.93527146,0.00028518,2]
[426914513,1783008640000,-2497.96067895,0.00028503,2]
[426914509,1783008640000,-1000.0,0.000285,5]
[426914516,1783008640000,-1238.43727087,0.00028509,2]
[426914510,1783008640000,-595.0,0.000285,2]
[426914517,1783008640000,-1373.43568169,0.00028509,2]
[426914544,1783008643000,-43031.36163512,0.00028518,2]
[426914575,1783008646000,-57.12871253,0.00028518,2]
[426914601,1783008766000,735.34021,0.0002868,120]
[426914602,1783009268000,1622.0,0.000195,30]
[426914721,1783009834000,-224.6270284,0.00023738,2]
[426914724,1783009834000,-334.29925166,0.0002387,2]
[426914716,1783009834000,-166.66666666,0.00022789,2]
[426914723,1783009834000,-360.81654252,0.0002387,2]
[426914717,1783009834000,-157.09956401,0.00022889,2]
[426914719,1783009834000,-167.14962583,0.00022889,2]
[426914720,1783009834000,-411.8316132,0.00023582,2]
[426914718,1783009834000,-180.40827126,0.00022889,2]
[426914722,1783009834000,-314.19912802,0.0002387,2]
[426914729,1783009834000,-70.04037369,0.00024524,2]
[426914727,1783009834000,-162.46224839,0.00024517,2]
[426914725,1783009834000,-2136.40427168,0.00023958,2]
[426914728,1783009834000,-471.29869203,0.00024524,2]
[426914726,1783009834000,-1573.14171932,0.00023958,2]
[426914763,1783009838000,-471.18444008,0.00024524,2]
[426914783,1783009839000,-500.0,0.00024957,2]
[426914799,1783009839000,-509.34733848,0.00024957,2]
[426914798,1783009839000,-500.0,0.00024957,2]
[426914801,1783009839000,-500.0,0.00024957,2]
[426914800,1783009839000,-500.0,0.00024957,2]
[426914808,1783009839000,-668.59850332,0.0002496,2]
[426914803,1783009839000,-90.94797959,0.0002496,2]
[426914802,1783009839000,-400.0,0.00024957,2]
[426914804,1783009839000,-537.45027645,0.0002496,2]
[426914796,1783009839000,-500.0,0.00024957,2]
[426914817,1783009839000,-1002.89775499,0.0002605,2]
[426914812,1783009839000,-186.0,0.00025621,2]
[426914814,1783009839000,-160.0,0.00025737,2]
[426914815,1783009839000,-942.59738406,0.0002605,2]
[426914791,1783009839000,-500.0,0.00024957,2]
[426914767,1783009839000,-247.03457486,0.00024856,2]
[426914779,1783009839000,-162.38986853,0.00024953,2]
[426914793,1783009839000,-500.0,0.00024957,2]
[426914794,1783009839000,-500.0,0.00024957,2]
[426914781,1783009839000,-325.2873983,0.00024953,2]
[426914784,1783009839000,-104.31931688,0.00024957,2]
[426914787,1783009839000,-395.68068312,0.00024957,2]
[426914789,1783009839000,-500.0,0.00024957,2]
[426914777,1783009839000,-293.31409047,0.00024953,2]
[426914773,1783009839000,-260.59208098,0.00024953,2]
[426914771,1783009839000,-278.93442037,0.00024953,2]
[426914769,1783009839000,-289.60557854,0.00024953,2]
[426914775,1783009839000,-26.66239804,0.00024953,2]
[426914765,1783009839000,-501.44887749,0.00024524,2]
[426914806,1783009839000,-721.63308503,0.0002496,2]
[426914797,1783009839000,-500.0,0.00024957,2]
[426914809,1783009839000,-785.49782005,0.00025396,2]
[426914843,1783009839000,-10000.0,0.000286,3]
[426914810,1783009839000,-902.04135629,0.00025396,2]
[426914811,1783009839000,-835.74812916,0.00025396,2]
[426914841,1783009839000,-500.0,0.00028599,7]
[426914840,1783009839000,-1443.26617006,0.00028503,2]
[426914835,1783009839000,-457.624078,0.00028491,2]
[426914836,1783009839000,-1084.2679282,0.00028498,2]
[426914842,1783009839000,-3716.01918276,0.000286,30]
[426914837,1783009839000,-500.0,0.000285,10]
[426914838,1783009839000,-361.2,0.00028503,3]
[426914844,1783009839000,-52395.57219354,0.000286,2]
[426914834,1783009839000,-200.0,0.00028142,10]
[426914831,1783009839000,-219.0,0.00028,2]
[426914821,1783009839000,-1099.69694807,0.00027032,2]
[426914828,1783009839000,-409.92,0.00027509,15]
[426914827,1783009839000,-191.05,0.00027458,2]
[426914824,1783009839000,-457.624078,0.00027384,2]
[426914839,1783009839000,-1256.79651208,0.00028503,2]
[426914830,1783009839000,-159.0,0.00028,2]
[426914807,1783009839000,-251.66958782,0.0002496,2]
[426914818,1783009839000,-457.624078,0.00026278,2]
[426914819,1783009839000,-258.75108819,0.00026695,2]
[426914805,1783009839000,-270.5856973,0.0002496,2]
[426914820,1783009839000,-919.58704052,0.00026807,5]
[426914813,1783009839000,-446.0,0.00025621,2]
[426914816,1783009839000,-1082.44962755,0.0002605,2]
[426914823,1783009839000,-160.0,0.00027349,3]
[426914832,1783009839000,-160.0,0.00028117,2]
[426914833,1783009839000,-200.0,0.00028142,10]
[426914822,1783009839000,-1262.8578988,0.00027032,2]
[426914825,1783009839000,-150.74935119,0.00027397,30]
[426914826,1783009839000,-177.74759579,0.00027397,7]
[426914829,1783009839000,-203.0,0.00028,2]
[426914854,1783009840000,-12242.0,0.000286,2]
[426914873,1783009847000,-5535.83882743,0.000286,2]
[426914875,1783009847000,-28895.5226604,0.000286,2]
[426914872,1783009847000,-584.16117256,0.00028521,2]
[426914878,1783009928000,155.60337769,0.00023956,2]
[426914879,1783009946000,-311.20675537,0.00024937,2]
[426914880,1783009963000,-466.81013306,0.00025591,2]
[426914888,1783010917000,251.73661241,0.000118,5]
[426914954,1783011032000,-500.0,0.00020999,2]
[426914948,1783011032000,-500.0,0.00020999,2]
[426914968,1783011032000,-500.0,0.00020999,2]
[426914951,1783011032000,-500.0,0.00020999,2]
[426914966,1783011032000,-454.39351804,0.00020999,2]
[426914947,1783011032000,-500.0,0.00020999,2]
[426914962,1783011032000,-500.0,0.00020999,2]
[426914960,1783011032000,-500.0,0.00020999,2]
[426914957,1783011032000,-500.0,0.00020999,2]
[426914945,1783011032000,-500.0,0.00020999,2]
[426914943,1783011032000,-200.85874744,0.00020999,2]
[426914935,1783011032000,-299.14125256,0.00020999,2]
[426914970,1783011032000,-500.0,0.00020999,2]
[426914964,1783011032000,-500.0,0.00020999,2]
[426914972,1783011032000,-500.0,0.00020999,2]
[426914995,1783011032000,-500.0,0.00020999,2]
[426914976,1783011032000,-500.0,0.00020999,2]
[426914974,1783011032000,-500.0,0.00020999,2]
[426915003,1783011032000,-335.27549661,0.00020999,2]
[426914982,1783011032000,-500.0,0.00020999,2]
[426914985,1783011032000,-500.0,0.00020999,2]
[426914983,1783011032000,-500.0,0.00020999,2]
[426915002,1783011032000,-115.31547509,0.00020999,2]
[426914999,1783011032000,-419.01939007,0.00020999,2]
[426914980,1783011032000,-500.0,0.00020999,2]
[426914997,1783011032000,-500.0,0.00020999,2]
[426914994,1783011032000,-500.0,0.00020999,2]
[426914992,1783011032000,-500.0,0.00020999,2]
[426914978,1783011032000,-500.0,0.00020999,2]
[426914987,1783011032000,-500.0,0.00020999,2]
[426914989,1783011032000,-610.7730617,0.00020999,2]
[426915088,1783011039000,-500.0,0.00020999,2]
[426915095,1783011039000,-500.0,0.00020999,2]
[426915105,1783011039000,-500.0,0.00020999,2]
[426915104,1783011039000,-500.0,0.00020999,2]
[426915094,1783011039000,-500.0,0.00020999,2]
[426915090,1783011039000,-500.0,0.00020999,2]
[426915091,1783011039000,-500.0,0.00020999,2]
[426915092,1783011039000,-500.0,0.00020999,2]
[426915096,1783011039000,-500.0,0.00020999,2]
[426915080,1783011039000,-500.0,0.00020999,2]
[426915085,1783011039000,-500.0,0.00020999,2]
[426915083,1783011039000,-500.0,0.00020999,2]
[426915087,1783011039000,-500.0,0.00020999,2]
[426915082,1783011039000,-500.0,0.00020999,2]
[426915089,1783011039000,-500.0,0.00020999,2]
[426915086,1783011039000,-500.0,0.00020999,2]
[426915081,1783011039000,-500.0,0.00020999,2]
[426915079,1783011039000,-500.0,0.00020999,2]
[426915078,1783011039000,-500.0,0.00020999,2]
[426915077,1783011039000,-164.72450339,0.00020999,2]
[426915098,1783011039000,-167.62628345,0.00020999,2]
[426915084,1783011039000,-500.0,0.00020999,2]
[426915097,1783011039000,-500.0,0.00020999,2]
[426915093,1783011039000,-500.0,0.00020999,2]
[426915101,1783011039000,-500.0,0.00020999,2]
[426915123,1783011039000,-500.0,0.00020999,2]
[426915121,1783011039000,-500.0,0.00020999,2]
[426915124,1783011039000,-287.69626023,0.00020999,2]
[426915122,1783011039000,-500.0,0.00020999,2]
[426915118,1783011039000,-257.65788401,0.00020999,2]
[426915120,1783011039000,-500.0,0.00020999,2]
[426915119,1783011039000,-500.0,0.00020999,2]
[426915114,1783011039000,-500.0,0.00020999,2]
[426915112,1783011039000,-500.0,0.00020999,2]
[426915113,1783011039000,-500.0,0.00020999,2]
[426915115,1783011039000,-500.0,0.00020999,2]
[426915100,1783011039000,-500.0,0.00020999,2]
[426915116,1783011039000,-500.0,0.00020999,2]
[426915110,1783011039000,-500.0,0.00020999,2]
[426915107,1783011039000,-500.0,0.00020999,2]
[426915109,1783011039000,-500.0,0.00020999,2]
[426915111,1783011039000,-500.0,0.00020999,2]
[426915106,1783011039000,-500.0,0.00020999,2]
[426915108,1783011039000,-500.0,0.00020999,2]
[426915099,1783011039000,-500.0,0.00020999,2]
[426915103,1783011039000,-500.0,0.00020999,2]
[426915102,1783011039000,-500.0,0.00020999,2]
[426915117,1783011039000,-242.34211599,0.00020999,2]
[426915174,1783011048000,-212.30373977,0.00020999,2]
[426915176,1783011048000,-500.0,0.00020999,2]
[426915180,1783011048000,-500.0,0.00020999,2]
[426915187,1783011049000,-500.0,0.00020999,2]
[426915185,1783011049000,-500.0,0.00020999,2]
[426915189,1783011049000,-211.27461113,0.00020999,2]
[426915183,1783011049000,-500.0,0.00020999,2]
[426915228,1783011068000,163.676613,0.00028662,120]
[426915229,1783011080000,-260.45709094,0.00020998,2]
[426915231,1783011133000,-151.0,0.00020368,2]
[426915232,1783011186000,-2679.34845494,0.00020899,2]
[426915233,1783011240000,-413.40229129,0.00020899,2]
[426915234,1783011250000,-225.42896387,0.00020878,2]
[426915235,1783011304000,-500.0,0.00020995,2]
[426915236,1783011315000,-254.5842647,0.00020995,2]
[426915237,1783011368000,-500.0,0.00020998,2]
[426915238,1783011380000,-500.0,0.00020998,2]
[426915239,1783011433000,-500.0,0.00020897,2]
[426915264,1783011757000,-2131.53664493,0.00019992,2]
[426915265,1783011810000,-500.0,0.00019992,2]
[426915266,1783011821000,-2131.53664493,0.00019992,2]
[426915267,1783011874000,-500.0,0.00019992,2]
[426915268,1783011885000,-192.63592734,0.00019992,2]
[426915269,1783011938000,-168.692121,0.00020446,2]
[426915273,1783011991000,-193.691988,0.0002057,2]
[426915274,1783012045000,-500.0,0.00020792,2]
[426915275,1783012055000,-2131.53664493,0.00020792,2]
[426915277,1783012109000,-500.0,0.00020792,2]
[426915496,1783012238000,-567.524813,0.0002089,2]
[426915489,1783012238000,-500.0,0.0002089,2]
[426915485,1783012238000,-500.0,0.0002089,2]
[426915488,1783012238000,-567.524813,0.0002089,2]
[426915498,1783012238000,-567.524813,0.0002089,2]
[426915500,1783012238000,-500.0,0.0002089,2]
[426915501,1783012238000,-567.524813,0.0002089,2]
[426915503,1783012238000,-500.0,0.0002089,2]
[426915505,1783012238000,-567.524813,0.0002089,2]
[426915511,1783012238000,-567.524813,0.0002089,2]
[426915435,1783012238000,-156.0,0.00020692,2]
[426915513,1783012238000,-567.524813,0.0002089,2]
[426915515,1783012238000,-567.524813,0.0002089,2]
[426915518,1783012238000,-500.0,0.0002089,2]
[426915507,1783012238000,-601.57457642,0.0002089,2]
[426915520,1783012238000,-567.524813,0.0002089,2]
[426915522,1783012238000,-567.524813,0.0002089,2]
[426915524,1783012238000,-500.0,0.0002089,2]
[426915528,1783012238000,-567.524813,0.0002089,2]
[426915526,1783012238000,-567.524813,0.0002089,2]
[426915529,1783012238000,-500.0,0.0002089,2]
[426915492,1783012238000,-567.524813,0.0002089,2]
[426915509,1783012238000,-500.0,0.0002089,2]
[426915483,1783012238000,-567.524813,0.0002089,2]
[426915481,1783012238000,-500.0,0.0002089,2]
[426915445,1783012238000,-518.62183438,0.0002089,2]
[426915447,1783012238000,-500.0,0.0002089,2]
[426915437,1783012238000,-182.31996366,0.0002089,2]
[426915543,1783012238000,-567.524813,0.0002089,2]
[426915443,1783012238000,-500.0,0.0002089,2]
[426915441,1783012238000,-500.0,0.0002089,2]
[426915450,1783012238000,-500.0,0.0002089,2]
[426915455,1783012238000,-500.0,0.0002089,2]
[426915453,1783012238000,-567.524813,0.0002089,2]
[426915456,1783012238000,-500.0,0.0002089,2]
[426915449,1783012238000,-500.0,0.0002089,2]
[426915461,1783012238000,-500.0,0.0002089,2]
[426915464,1783012238000,-567.524813,0.0002089,2]
[426915466,1783012238000,-500.0,0.0002089,2]
[426915470,1783012238000,-567.524813,0.0002089,2]
[426915472,1783012238000,-500.0,0.0002089,2]
[426915468,1783012238000,-567.524813,0.0002089,2]
[426915473,1783012238000,-567.524813,0.0002089,2]
[426915476,1783012238000,-567.524813,0.0002089,2]
[426915479,1783012238000,-567.524813,0.0002089,2]
[426915478,1783012238000,-403.93761177,0.0002089,2]
[426915494,1783012238000,-500.0,0.0002089,2]
[426915545,1783012238000,-567.524813,0.0002089,2]
[426915439,1783012238000,-500.0,0.0002089,2]
[426915535,1783012238000,-567.524813,0.0002089,2]
[426915595,1783012238000,-567.524813,0.0002089,2]
[426915597,1783012238000,-567.524813,0.0002089,2]
[426915599,1783012238000,-567.524813,0.0002089,2]
[426915601,1783012238000,-567.524813,0.0002089,2]
[426915606,1783012238000,-567.524813,0.0002089,2]
[426915610,1783012238000,-567.524813,0.0002089,2]
[426915603,1783012238000,-567.524813,0.0002089,2]
[426915608,1783012238000,-567.524813,0.0002089,2]